[Event "LJ Slovak Open 2022"]
[Site "Liptovsky Jan"]
[Date "2022.06.25"]
[Round "4.29"]
[White "Kulich, Daniel"]
[Black "Mrkvik, Jan"]
[Result "1/2-1/2"]
[ECO "B13"]
[WhiteElo "1648"]
[BlackElo "1810"]
[Annotator "NA RC"]
[PlyCount "81"]
[EventDate "2022.06.23"]
[EventType "swiss"]
[EventCountry "SVK"]
[SourceTitle "playchess.com"]
[Source "ChessBase"]
[SourceQuality "1"]
[TimeControl "3600+30"]

1. e4 {[%emt 0:00:06]} c6 {[%emt 0:00:05]} 2. d4 {[%emt 0:00:49]} d5 {[%emt 0:00:07]} 3. exd5 {[%emt 0:00:19]} cxd5 {[%emt 0:00:08]} 4. Bd3 {[%emt 0:00:07]} Nc6 {[%emt 0:00:50]} 5. c3 {[%emt 0:00:06]} e5 {[%emt 0:01:39]} 6. dxe5 {[%emt 0:12:22]} Nxe5 {[%emt 0:00:30]} 7. Qe2 {[%emt 0:02:05]} Qe7 {[%emt 0:01:32]} 8. Bb5+ {[%emt 0:00:22]} Bd7 {[%emt 0:01:31]} 9. Bxd7+ {[%emt 0:00:20]} Nxd7 {[%emt 0:00:11]} 10. Qxe7+ {[%emt 0:00:22]} Bxe7 {[%emt 0:00:18]} 11. Nf3 {[%emt 0:00:57]} Ngf6 {[%emt 0:00:28]} 12. Be3 {[%emt 0:00:50]} O-O {[%emt 0:00:52]} 13. Nbd2 {[%emt 0:03:51]} Rfe8 {[%emt 0:00:39]} 14. O-O {[%emt 0:04:07]} Bc5 {[%emt 0:03:10]} 15. Bd4 {[%emt 0:01:20]} Ne4 {[%emt 0:01:03]} 16. Nb3 {[%emt 0:00:58]} Bd6 {[%emt 0:04:34]} 17. Rad1 {[%emt 0:01:35]} Rad8 {[%emt 0:02:27]} 18. Rfe1 {[%emt 0:04:59]} h6 {[%emt 0:05:36]} 19. Be3 {[%emt 0:04:00]} Ndf6 {[%emt 0:04:35]} 20. a3 {[%emt 0:01:16]} Ng4 {[%emt 0:06:42]} 21. Bxa7 {[%emt 0:04:50]} b6 {[%emt 0:00:04]} 22. Nbd2 {[%emt 0:08:14]} Bc5 {[%emt 0:03:16]} 23. Nxe4 {[%emt 0:01:31]} dxe4 {[%emt 0:00:13]} 24. Rxd8 {[%emt 0:08:05]} Rxd8 {[%emt 0:00:50]} 25. Nd4 {[%emt 0:01:02]} Ra8 {[%emt 0:06:28]} 26. Bxb6 {[%emt 0:00:31]} Bxb6 {[%emt 0:00:10]} 27. Rxe4 {[%emt 0:00:10]} Nf6 {[%emt 0:04:13]} 28. Rf4 {[%emt 0:00:49]} Rb8 {[%emt 0:00:44]} 29. Nc6 {[%emt 0:01:19]} Rb7 {[%emt 0:00:42]} 30. Rb4 {[%emt 0:00:21]} Nd5 {[%emt 0:00:47]} 31. Re4 {[%emt 0:02:24]} Bc7 {[%emt 0:02:03]} 32. Re2 {[%emt 0:01:12]} Nxc3 {[%emt 0:00:25]} 33. Rc2 {[%emt 0:00:50]} Nd5 {[%emt 0:02:54]} 34. b4 {[%emt 0:00:31]} Kf8 {[%emt 0:04:40]} 35. Rc5 {[%emt 0:00:20]} Nf6 {[%emt 0:00:56]} 36. a4 {[%emt 0:00:16]} Nd7 {[%emt 0:05:21]} 37. Rd5 {[%emt 0:01:07]} Ke8 {[%emt 0:01:19]} 38. b5 {[%emt 0:01:07]} Nb6 {[%emt 0:03:40]} 39. Rd4 {[%emt 0:00:31]} Nxa4 {[%emt 0:01:25]} 40. Rxa4 {[%emt 0:01:05]} Rxb5 {[%emt 0:00:16]} 41. g3 {[%emt 0:00:51]} 1/2-1/2

[Event "LJ Slovak Open 2022"]
[Site "Liptovsky Jan"]
[Date "2022.06.25"]
[Round "4.30"]
[White "Szaszak, Lukas"]
[Black "Miciak, Emanuel"]
[Result "1/2-1/2"]
[ECO "E61"]
[WhiteElo "1454"]
[BlackElo "1804"]
[Annotator "NA RC"]
[PlyCount "93"]
[EventDate "2022.06.23"]
[EventType "swiss"]
[EventCountry "SVK"]
[SourceTitle "playchess.com"]
[Source "ChessBase"]
[SourceQuality "1"]
[TimeControl "3600+30"]

1. d4 {[%emt 0:00:07]} d6 {[%emt 0:00:59]} 2. Nf3 {[%emt 0:00:32]} Nf6 {[%emt 0:00:34]} 3. Bf4 {[%emt 0:00:25]} g6 {[%emt 0:01:01]} 4. e3 {[%emt 0:00:34]} Bg7 {[%emt 0:00:33]} 5. h3 {[%emt 0:00:49]} O-O {[%emt 0:01:03]} 6. c4 {[%emt 0:00:24]} c5 {[%emt 0:03:56]} 7. Nc3 {[%emt 0:02:06]} Nc6 {[%emt 0:03:21]} 8. Rc1 {[%emt 0:05:16]} Re8 {[%emt 0:03:30]} 9. a3 {[%emt 0:01:55]} Nh5 {[%emt 0:04:22]} 10. Bh2 {[%emt 0:00:37]} cxd4 {[%emt 0:02:09]} 11. exd4 {[%emt 0:00:22]} e5 {[%emt 0:07:07]} 12. dxe5 {[%emt 0:05:33]} dxe5 {[%emt 0:01:05]} 13. Qxd8 {[%emt 0:01:04]} Rxd8 {[%emt 0:04:28]} 14. Be2 {[%emt 0:03:37]} Be6 {[%emt 0:04:32]} 15. g4 {[%emt 0:00:30]} Nf4 {[%emt 0:00:53]} 16. Bxf4 {[%emt 0:00:28]} exf4 {[%emt 0:00:04]} 17. O-O {[%emt 0:00:28]} a6 {[%emt 0:07:23]} 18. b4 {[%emt 0:01:05]} Nd4 {[%emt 0:01:18]} 19. Nxd4 {[%emt 0:01:38]} Rxd4 {[%emt 0:00:41]} 20. c5 {[%emt 0:03:15]} Rad8 {[%emt 0:02:11]} 21. f3 {[%emt 0:05:53]} Rd2 {[%emt 0:03:14]} 22. Rfe1 {[%emt 0:00:54]} Bd4+ {[%emt 0:02:09]} 23. Kf1 {[%emt 0:00:57]} Kf8 {[%emt 0:03:26]} 24. a4 {[%emt 0:03:44]} f5 {[%emt 0:02:38]} 25. Nd1 {[%emt 0:11:18]} Kf7 {[%emt 0:03:40]} 26. c6 {[%emt 0:02:06]} bxc6 {[%emt 0:00:52]} 27. Rxc6 {[%emt 0:00:35]} fxg4 {[%emt 0:01:01]} 28. hxg4 {[%emt 0:02:07]} Bd5 {[%emt 0:01:38]} 29. Rc7+ {[%emt 0:03:31]} Kf6 {[%emt 0:00:33]} 30. Rxh7 {[%emt 0:01:17]} Rc8 {[%emt 0:01:49]} 31. Rd7 {[%emt 0:01:01]} Bb3 {[%emt 0:00:33]} 32. Nf2 {[%emt 0:02:24]} Bc2 {[%emt 0:00:31]} 33. Rc1 {[%emt 0:01:32]} Re8 {[%emt 0:01:11]} 34. Rxc2 {[%emt 0:04:22]} Rxc2 {[%emt 0:00:47]} 35. Rxd4 {[%emt 0:01:28]} Rexe2 {[%emt 0:00:53]} 36. Rxf4+ {[%emt 0:01:00]} Kg7 {[%emt 0:01:10]} 37. Nd3 {[%emt 0:00:48]} Rh2 {[%emt 0:00:36]} 38. Kg1 {[%emt 0:00:28]} Rhd2 {[%emt 0:00:08]} 39. Ne1 {[%emt 0:00:34]} Rd1 {[%emt 0:00:19]} 40. Kf1 {[%emt 0:00:26]} Rh2 {[%emt 0:01:02]} 41. Re4 {[%emt 0:00:33]} Rh1+ {[%emt 0:01:04]} 42. Kf2 {[%emt 0:00:13]} Rd2+ {[%emt 0:00:24]} 43. Kg3 {[%emt 0:00:32]} g5 {[%emt 0:00:36]} 44. f4 {[%emt 0:00:40]} Rg1+ {[%emt 0:00:20]} 45. Kf3 {[%emt 0:00:26]} Rf1+ {[%emt 0:00:19]} 46. Kg3 {[%emt 0:01:24]} Rg1+ {[%emt 0:00:04]} 47. Kf3 {[%emt 0:00:49]} 1/2-1/2

[Event "LJ Slovak Open 2022"]
[Site "Liptovsky Jan"]
[Date "2022.06.25"]
[Round "4.31"]
[White "Recky, Norbert"]
[Black "Straka, Simon"]
[Result "0-1"]
[ECO "C42"]
[WhiteElo "1755"]
[BlackElo "1523"]
[Annotator "NA RC"]
[PlyCount "48"]
[EventDate "2022.06.23"]
[EventType "swiss"]
[EventCountry "SVK"]
[SourceTitle "playchess.com"]
[Source "ChessBase"]
[SourceQuality "1"]
[TimeControl "3600+30"]

1. e4 {[%emt 0:00:05]} e5 {[%emt 0:00:07]} 2. Nf3 {[%emt 0:00:06]} Nf6 {[%emt 0:00:00]} 3. Nxe5 {[%emt 0:00:12]} d6 {[%emt 0:00:00]} 4. Nf3 {[%emt 0:00:30]} Nxe4 {[%emt 0:00:00]} 5. d4 {[%emt 0:00:30]} d5 {[%emt 0:00:15]} 6. Bd3 {[%emt 0:00:30]} Bd6 {[%emt 0:00:30]} 7. O-O {[%emt 0:00:30]} O-O {[%emt 0:00:25]} 8. Nbd2 {[%emt 0:00:30]} Re8 {[%emt 0:01:45]} 9. c4 {[%emt 0:01:44]} c6 {[%emt 0:00:09]} 10. Qc2 {[%emt 0:00:28]} f5 {[%emt 0:04:18]} 11. g3 {[%emt 0:04:51]} Nd7 {[%emt 0:05:44]} 12. b3 {[%emt 0:01:57]} Ndf6 {[%emt 0:01:40]} 13. Bb2 {[%emt 0:00:24]} Ng4 {[%emt 0:06:32]} 14. Rae1 {[%emt 0:04:53]} Qf6 {[%emt 0:06:35]} 15. Kg2 {[%emt 0:03:28]} Bd7 {[%emt 0:04:20]} 16. h3 {[%emt 0:01:43]} Ngxf2 {[%emt 0:02:30]} 17. Rxf2 {[%emt 0:01:56]} Nxf2 {[%emt 0:03:25]} 18. Kxf2 {[%emt 0:00:31]} Rxe1 {[%emt 0:00:30]} 19. Nxe1 {[%emt 0:00:30]} f4 {[%emt 0:00:30]} 20. Nef3 {[%emt 0:05:14]} Bxh3 {[%emt 0:02:28]} 21. Bxh7+ {[%emt 0:02:02]} Kh8 {[%emt 0:00:11]} 22. Qg6 {[%emt 0:00:42]} fxg3+ {[%emt 0:00:47]} 23. Kg1 {[%emt 0:00:45]} Qf4 {[%emt 0:01:19]} 24. Qd3 {[%emt 0:02:12]} Re8 {[%emt 0:01:41]} 0-1

[Event "LJ Slovak Open 2022"]
[Site "Liptovsky Jan"]
[Date "2022.06.25"]
[Round "4.32"]
[White "Szabo, Marian"]
[Black "Szaszak, Robert"]
[Result "0-1"]
[ECO "D04"]
[WhiteElo "1467"]
[BlackElo "1717"]
[Annotator "NA RC"]
[PlyCount "64"]
[EventDate "2022.06.23"]
[EventType "swiss"]
[EventCountry "SVK"]
[SourceTitle "playchess.com"]
[Source "ChessBase"]
[SourceQuality "1"]
[TimeControl "3600+30"]

1. d4 {[%emt 0:00:06]} d5 {[%emt 0:00:11]} 2. e3 {[%emt 0:00:11]} Bf5 {[%emt 0:00:13]} 3. Nf3 {[%emt 0:00:18]} e6 {[%emt 0:00:11]} 4. Nbd2 {[%emt 0:00:11]} Nf6 {[%emt 0:00:21]} 5. h3 {[%emt 0:00:12]} Bd6 {[%emt 0:00:14]} 6. c4 {[%emt 0:00:21]} c6 {[%emt 0:00:34]} 7. a3 {[%emt 0:00:17]} O-O {[%emt 0:00:54]} 8. c5 {[%emt 0:00:05]} Bc7 {[%emt 0:00:08]} 9. b4 {[%emt 0:00:22]} a6 {[%emt 0:00:31]} 10. Bb2 {[%emt 0:00:49]} h6 {[%emt 0:00:21]} 11. Nh4 {[%emt 0:01:23]} Be4 {[%emt 0:00:30]} 12. Nhf3 {[%emt 0:00:37]} Nbd7 {[%emt 0:00:18]} 13. Ne5 {[%emt 0:00:27]} Nxe5 {[%emt 0:00:29]} 14. dxe5 {[%emt 0:00:05]} Nd7 {[%emt 0:00:07]} 15. f4 {[%emt 0:01:07]} Qh4+ {[%emt 0:00:41]} 16. Ke2 {[%emt 0:06:42]} Bg6 {[%emt 0:01:07]} 17. Nf3 {[%emt 0:00:33]} Qe7 {[%emt 0:00:13]} 18. Kf2 {[%emt 0:00:53]} b6 {[%emt 0:00:14]} 19. Bd4 {[%emt 0:01:41]} bxc5 {[%emt 0:00:21]} 20. Bxc5 {[%emt 0:00:38]} Nxc5 {[%emt 0:00:09]} 21. bxc5 {[%emt 0:00:04]} Qxc5 {[%emt 0:00:50]} 22. Nd4 {[%emt 0:00:18]} Bb6 {[%emt 0:00:50]} 23. Bd3 {[%emt 0:00:57]} Qc3 {[%emt 0:01:00]} 24. Bxg6 {[%emt 0:00:30]} fxg6 {[%emt 0:00:10]} 25. Re1 {[%emt 0:01:45]} Bxd4 {[%emt 0:00:14]} 26. Qxd4 {[%emt 0:00:23]} Qxd4 {[%emt 0:00:07]} 27. exd4 {[%emt 0:00:14]} Rxf4+ {[%emt 0:00:07]} 28. Ke3 {[%emt 0:00:25]} Raf8 {[%emt 0:00:27]} 29. Rac1 {[%emt 0:00:55]} Re4+ {[%emt 0:00:24]} 30. Kd3 {[%emt 0:00:21]} Rxe1 {[%emt 0:00:11]} 31. Rxe1 {[%emt 0:00:05]} Rf2 {[%emt 0:00:20]} 32. Rc1 {[%emt 0:00:25]} Rxg2 {[%emt 0:00:24]} 0-1

[Event "LJ Slovak Open 2022"]
[Site "Liptovsky Jan"]
[Date "2022.06.25"]
[Round "4.33"]
[White "Ciglian, Michal"]
[Black "Hlavac, Tomas"]
[Result "1-0"]
[ECO "E81"]
[WhiteElo "1704"]
[BlackElo "1409"]
[Annotator "NA RC"]
[PlyCount "79"]
[EventDate "2022.06.23"]
[EventType "swiss"]
[EventCountry "SVK"]
[SourceTitle "playchess.com"]
[Source "ChessBase"]
[SourceQuality "1"]
[TimeControl "3600+30"]

1. c4 {[%emt 0:00:06]} Nf6 {[%emt 0:00:06]} 2. Nc3 {[%emt 0:00:07]} g6 {[%emt 0:00:06]} 3. d4 {[%emt 0:00:11]} Bg7 {[%emt 0:00:05]} 4. e4 {[%emt 0:00:17]} d6 {[%emt 0:00:06]} 5. f3 {[%emt 0:00:16]} O-O {[%emt 0:00:09]} 6. Be3 {[%emt 0:00:24]} Nbd7 {[%emt 0:00:14]} 7. Bd3 {[%emt 0:00:31]} a6 {[%emt 0:00:29]} 8. Nge2 {[%emt 0:00:22]} c5 {[%emt 0:00:29]} 9. d5 {[%emt 0:00:11]} Ne5 {[%emt 0:00:55]} 10. O-O {[%emt 0:00:42]} Nxd3 {[%emt 0:00:19]} 11. Qxd3 {[%emt 0:00:09]} Re8 {[%emt 0:01:49]} 12. Rad1 {[%emt 0:00:32]} b6 {[%emt 0:00:37]} 13. h3 {[%emt 0:01:31]} Ra7 {[%emt 0:00:53]} 14. f4 {[%emt 0:01:41]} b5 {[%emt 0:02:25]} 15. b4 {[%emt 0:02:02]} bxc4 {[%emt 0:02:38]} 16. Qxc4 {[%emt 0:00:12]} Rc7 {[%emt 0:01:41]} 17. bxc5 {[%emt 0:00:24]} dxc5 {[%emt 0:00:10]} 18. e5 {[%emt 0:00:37]} Nd7 {[%emt 0:00:51]} 19. Ne4 {[%emt 0:03:19]} Nb6 {[%emt 0:00:45]} 20. Qb3 {[%emt 0:00:19]} Rb7 {[%emt 0:01:22]} 21. Nxc5 {[%emt 0:00:51]} Rb8 {[%emt 0:00:11]} 22. Qd3 {[%emt 0:01:02]} Bf5 {[%emt 0:00:32]} 23. Ne4 {[%emt 0:01:32]} Bd7 {[%emt 0:05:05]} 24. Qxa6 {[%emt 0:03:45]} Na4 {[%emt 0:01:27]} 25. N2c3 {[%emt 0:01:27]} Ra8 {[%emt 0:03:44]} 26. Qe2 {[%emt 0:00:38]} Qa5 {[%emt 0:02:53]} 27. Nxa4 {[%emt 0:02:04]} Bb5 {[%emt 0:00:28]} 28. Qd2 {[%emt 0:02:01]} Qxd2 {[%emt 0:02:27]} 29. Rxd2 {[%emt 0:00:06]} Bxf1 {[%emt 0:00:07]} 30. Nb6 {[%emt 0:00:25]} Ra3 {[%emt 0:03:20]} 31. Bc5 {[%emt 0:02:46]} Bd3 {[%emt 0:04:40]} 32. Bxa3 {[%emt 0:01:37]} Bxe4 {[%emt 0:00:05]} 33. d6 {[%emt 0:00:20]} exd6 {[%emt 0:00:09]} 34. exd6 {[%emt 0:00:05]} Bf6 {[%emt 0:01:55]} 35. d7 {[%emt 0:00:42]} Rd8 {[%emt 0:00:31]} 36. Bd6 {[%emt 0:00:20]} Bc3 {[%emt 0:02:07]} 37. Bc7 {[%emt 0:00:20]} Bxd2 {[%emt 0:00:56]} 38. Bxd8 {[%emt 0:00:07]} Be3+ {[%emt 0:00:07]} 39. Kh1 {[%emt 0:00:09]} Bc6 {[%emt 0:00:25]} 40. Bc7 {[%emt 0:00:10]} 1-0

[Event "LJ Slovak Open 2022"]
[Site "Liptovsky Jan"]
[Date "2022.06.25"]
[Round "4.34"]
[White "Petrik, Matus"]
[Black "Freibergs, Filips"]
[Result "1-0"]
[ECO "A11"]
[WhiteElo "1684"]
[BlackElo "1250"]
[Annotator "NA RC"]
[PlyCount "89"]
[EventDate "2022.06.23"]
[EventType "swiss"]
[EventCountry "SVK"]
[SourceTitle "playchess.com"]
[Source "ChessBase"]
[SourceQuality "1"]
[TimeControl "3600+30"]

1. c4 {[%emt 0:03:52]} c6 {[%emt 0:00:37]} 2. Nc3 {[%emt 0:00:06]} d5 {[%emt 0:00:42]} 3. cxd5 {[%emt 0:00:09]} cxd5 {[%emt 0:00:02]} 4. Nf3 {[%emt 0:00:22]} Nf6 {[%emt 0:00:16]} 5. d3 {[%emt 0:00:47]} Bf5 {[%emt 0:00:26]} 6. Qb3 {[%emt 0:01:25]} d4 {[%emt 0:03:48]} 7. Nxd4 {[%emt 0:04:23]} Bc8 {[%emt 0:19:03]} 8. Nf3 {[%emt 0:04:55]} e6 {[%emt 0:00:50]} 9. Bg5 {[%emt 0:00:47]} Nbd7 {[%emt 0:00:43]} 10. Ne4 {[%emt 0:01:47]} b6 {[%emt 0:03:33]} 11. Nxf6+ {[%emt 0:03:26]} Nxf6 {[%emt 0:00:13]} 12. g3 {[%emt 0:00:46]} Bd7 {[%emt 0:04:37]} 13. Rc1 {[%emt 0:00:42]} h6 {[%emt 0:02:55]} 14. Bd2 {[%emt 0:01:31]} Bd6 {[%emt 0:01:55]} 15. Bg2 {[%emt 0:00:07]} Rc8 {[%emt 0:00:21]} 16. O-O {[%emt 0:00:57]} O-O {[%emt 0:00:13]} 17. Rxc8 {[%emt 0:00:42]} Qxc8 {[%emt 0:00:29]} 18. Rc1 {[%emt 0:00:05]} Qa6 {[%emt 0:00:33]} 19. a3 {[%emt 0:02:12]} Nd5 {[%emt 0:02:50]} 20. Nd4 {[%emt 0:01:26]} Bc5 {[%emt 0:01:17]} 21. Bxd5 {[%emt 0:01:25]} exd5 {[%emt 0:03:41]} 22. Qxd5 {[%emt 0:00:10]} Bc8 {[%emt 0:03:40]} 23. Bc3 {[%emt 0:01:23]} Bb7 {[%emt 0:02:04]} 24. Qh5 {[%emt 0:08:09]} Qa4 {[%emt 0:07:13]} 25. Nf5 {[%emt 0:00:51]} Qc6 {[%emt 0:00:27]} 26. e4 {[%emt 0:00:00]} Kh7 {[%emt 0:02:54]} 27. Nxg7 {[%emt 0:04:38]} Ba6 {[%emt 0:00:58]} 28. Qf5+ {[%emt 0:00:46]} Kg8 {[%emt 0:00:23]} 29. Qg4 {[%emt 0:01:41]} Kh7 {[%emt 0:01:41]} 30. Nh5 {[%emt 0:02:26]} Bd4 {[%emt 0:02:08]} 31. Qf5+ {[%emt 0:07:20]} Kg8 {[%emt 0:00:10]} 32. Qf4 {[%emt 0:01:42]} Bxc3 {[%emt 0:01:12]} 33. Rxc3 {[%emt 0:00:02]} Qg6 {[%emt 0:00:14]} 34. Nf6+ {[%emt 0:00:21]} Kg7 {[%emt 0:00:04]} 35. Nd5 {[%emt 0:02:17]} Qe6 {[%emt 0:01:54]} 36. Nc7 {[%emt 0:01:22]} Qc8 {[%emt 0:00:10]} 37. Nxa6 {[%emt 0:00:43]} Qxa6 {[%emt 0:00:01]} 38. Qg4+ {[%emt 0:00:20]} Kh7 {[%emt 0:00:08]} 39. Qf5+ {[%emt 0:01:14]} Kg7 {[%emt 0:00:02]} 40. e5 {[%emt 0:00:14]} Qa5 {[%emt 0:00:58]} 41. Qf6+ {[%emt 0:03:59]} Kg8 {[%emt 0:00:10]} 42. Rc4 {[%emt 0:01:39]} Qe1+ {[%emt 0:00:36]} 43. Kg2 {[%emt 0:00:03]} Qe2 {[%emt 0:00:02]} 44. Qxh6 {[%emt 0:01:31]} f6 {[%emt 0:01:33]} 45. Qg6+ {[%emt 0:00:12]} 1-0

[Event "LJ Slovak Open 2022"]
[Site "Liptovsky Jan"]
[Date "2022.06.25"]
[Round "4.36"]
[White "Goga, Frantisek"]
[Black "Zelenka, Matej"]
[Result "1-0"]
[ECO "B50"]
[WhiteElo "1900"]
[BlackElo "1400"]
[Annotator "NA RC"]
[PlyCount "95"]
[EventDate "2022.06.23"]
[EventType "swiss"]
[EventCountry "SVK"]
[SourceTitle "playchess.com"]
[Source "ChessBase"]
[SourceQuality "1"]
[TimeControl "3600+30"]

1. e4 {[%emt 0:01:26]} c5 {[%emt 0:00:29]} 2. d4 {[%emt 0:00:11]} cxd4 {[%emt 0:00:30]} 3. c3 {[%emt 0:00:08]} e6 {[%emt 0:01:38]} 4. cxd4 {[%emt 0:01:25]} d6 {[%emt 0:01:11]} 5. Nf3 {[%emt 0:00:07]} Nf6 {[%emt 0:01:46]} 6. Nc3 {[%emt 0:01:12]} Be7 {[%emt 0:02:20]} 7. Be2 {[%emt 0:00:53]} O-O {[%emt 0:00:35]} 8. O-O {[%emt 0:00:04]} Nc6 {[%emt 0:00:49]} 9. h3 {[%emt 0:00:59]} Bd7 {[%emt 0:02:06]} 10. Be3 {[%emt 0:00:17]} a6 {[%emt 0:02:33]} 11. Qd2 {[%emt 0:01:11]} Qc7 {[%emt 0:01:07]} 12. Rac1 {[%emt 0:00:34]} b5 {[%emt 0:00:25]} 13. d5 {[%emt 0:01:35]} Na7 {[%emt 0:08:53]} 14. Nxb5 {[%emt 0:04:02]} Qb8 {[%emt 0:02:08]} 15. Bxa7 {[%emt 0:05:22]} Rxa7 {[%emt 0:00:57]} 16. Nxa7 {[%emt 0:00:26]} Qxa7 {[%emt 0:00:05]} 17. Qa5 {[%emt 0:05:05]} Rb8 {[%emt 0:09:54]} 18. dxe6 {[%emt 0:05:35]} fxe6 {[%emt 0:03:29]} 19. Rc7 {[%emt 0:02:09]} Rb7 {[%emt 0:00:28]} 20. Rfc1 {[%emt 0:00:36]} Nxe4 {[%emt 0:00:53]} 21. Rxb7 {[%emt 0:00:24]} Qxf2+ {[%emt 0:02:59]} 22. Kh1 {[%emt 0:05:00]} Qg3 {[%emt 0:00:48]} 23. Rb8+ {[%emt 0:02:31]} Bf8 {[%emt 0:00:34]} 24. Rxf8+ {[%emt 0:01:52]} Kxf8 {[%emt 0:00:05]} 25. Qd8+ {[%emt 0:00:17]} Be8 {[%emt 0:01:24]} 26. Qh4 {[%emt 0:00:24]} Qxh4 {[%emt 0:00:25]} 27. Nxh4 {[%emt 0:00:10]} Ng3+ {[%emt 0:00:16]} 28. Kh2 {[%emt 0:00:37]} Nxe2 {[%emt 0:00:06]} 29. Re1 {[%emt 0:02:54]} Nd4 {[%emt 0:00:15]} 30. Nf3 {[%emt 0:01:23]} Nxf3+ {[%emt 0:00:21]} 31. gxf3 {[%emt 0:00:02]} Ke7 {[%emt 0:00:20]} 32. f4 {[%emt 0:00:02]} g6 {[%emt 0:00:33]} 33. Kg3 {[%emt 0:00:02]} d5 {[%emt 0:00:14]} 34. Kf3 {[%emt 0:00:15]} Kd6 {[%emt 0:00:23]} 35. Ke3 {[%emt 0:00:07]} Bb5 {[%emt 0:00:25]} 36. Kd4 {[%emt 0:00:08]} Ba4 {[%emt 0:00:57]} 37. b3 {[%emt 0:01:43]} Bb5 {[%emt 0:00:08]} 38. Re3 {[%emt 0:00:21]} Bc6 {[%emt 0:00:28]} 39. a3 {[%emt 0:00:43]} Bb5 {[%emt 0:00:20]} 40. h4 {[%emt 0:00:53]} Be8 {[%emt 0:03:19]} 41. Rc3 {[%emt 0:00:22]} Bc6 {[%emt 0:00:42]} 42. Rc5 {[%emt 0:00:27]} h6 {[%emt 0:00:30]} 43. Rc1 {[%emt 0:01:01]} Bd7 {[%emt 0:00:20]} 44. Rg1 {[%emt 0:01:03]} Be8 {[%emt 0:00:40]} 45. Rg3 {[%emt 0:00:09]} h5 {[%emt 0:01:15]} 46. Rg2 {[%emt 0:01:15]} a5 $18 {[%emt 0:00:46]} 47. b4 {[%emt 0:00:33]} a4 {[%emt 0:00:14]} 48. Rg1 {[%emt 0:01:02]} 1-0

[Event "LJ Slovak Open 2022"]
[Site "Liptovsky Jan"]
[Date "2022.06.25"]
[Round "4.37"]
[White "Rak, Martin"]
[Black "Stefanides, Karol"]
[Result "1-0"]
[ECO "C44"]
[WhiteElo "1849"]
[BlackElo "1438"]
[Annotator "NA RC"]
[PlyCount "43"]
[EventDate "2022.06.23"]
[EventType "swiss"]
[EventCountry "SVK"]
[SourceTitle "playchess.com"]
[Source "ChessBase"]
[SourceQuality "1"]
[TimeControl "3600+30"]

1. e4 {[%emt 0:00:06]} e5 {[%emt 0:00:05]} 2. Nf3 {[%emt 0:00:02]} Nc6 {[%emt 0:00:27]} 3. d4 {[%emt 0:00:04]} exd4 {[%emt 0:00:42]} 4. Bc4 {[%emt 0:00:04]} h6 {[%emt 0:02:37]} 5. c3 {[%emt 0:00:42]} dxc3 {[%emt 0:02:58]} 6. Nxc3 {[%emt 0:00:45]} Bb4 {[%emt 0:02:55]} 7. O-O {[%emt 0:01:02]} Bxc3 {[%emt 0:01:53]} 8. bxc3 {[%emt 0:00:13]} Nge7 {[%emt 0:00:18]} 9. Ba3 {[%emt 0:04:09]} d6 {[%emt 0:01:55]} 10. Nd4 {[%emt 0:01:50]} O-O {[%emt 0:02:19]} 11. f4 {[%emt 0:00:39]} Nxd4 {[%emt 0:08:31]} 12. cxd4 {[%emt 0:00:54]} Be6 {[%emt 0:02:22]} 13. Bxe6 {[%emt 0:01:15]} fxe6 {[%emt 0:01:48]} 14. Qb3 {[%emt 0:00:07]} Qd7 {[%emt 0:03:43]} 15. f5 {[%emt 0:01:25]} Kh8 {[%emt 0:03:28]} 16. fxe6 {[%emt 0:00:41]} Qc6 {[%emt 0:05:03]} 17. d5 {[%emt 0:00:17]} Qb6+ {[%emt 0:00:41]} 18. Kh1 {[%emt 0:00:30]} Kg8 {[%emt 0:02:32]} 19. Qc3 {[%emt 0:09:14]} Rxf1+ {[%emt 0:01:32]} 20. Rxf1 {[%emt 0:00:49]} Rf8 {[%emt 0:00:49]} 21. Rxf8+ {[%emt 0:00:26]} Kxf8 {[%emt 0:00:11]} 22. Bb2 {[%emt 0:00:03]} 1-0

[Event "LJ Slovak Open 2022"]
[Site "Liptovsky Jan"]
[Date "2022.06.25"]
[Round "4.38"]
[White "Kukan, Michal"]
[Black "Vojtko, Imrich"]
[Result "1-0"]
[ECO "E12"]
[WhiteElo "1767"]
[BlackElo "1382"]
[Annotator "NA RC"]
[PlyCount "84"]
[EventDate "2022.06.23"]
[EventType "swiss"]
[EventCountry "SVK"]
[SourceTitle "playchess.com"]
[Source "ChessBase"]
[SourceQuality "1"]
[TimeControl "3600+30"]

1. c4 {[%emt 0:00:12]} b6 {[%emt 0:00:53]} 2. Nc3 {[%emt 0:00:23]} Bb7 {[%emt 0:00:14]} 3. d4 {[%emt 0:00:20]} e6 {[%emt 0:00:43]} 4. Nf3 {[%emt 0:00:41]} Be7 {[%emt 0:01:53]} 5. Bf4 {[%emt 0:01:13]} Nf6 {[%emt 0:03:18]} 6. a3 {[%emt 0:02:46]} O-O {[%emt 0:00:29]} 7. Nb5 {[%emt 0:04:22]} d6 {[%emt 0:00:43]} 8. Rc1 {[%emt 0:00:44]} a6 {[%emt 0:00:33]} 9. Nc3 {[%emt 0:00:38]} Nbd7 {[%emt 0:00:39]} 10. g3 {[%emt 0:01:10]} Rb8 {[%emt 0:04:37]} 11. Bg2 {[%emt 0:00:20]} Re8 {[%emt 0:05:33]} 12. O-O {[%emt 0:00:25]} Nh5 {[%emt 0:03:31]} 13. Bd2 {[%emt 0:01:35]} Nhf6 {[%emt 0:01:30]} 14. Qc2 {[%emt 0:01:09]} e5 {[%emt 0:00:54]} 15. d5 {[%emt 0:00:52]} Bc8 {[%emt 0:00:19]} 16. b4 {[%emt 0:01:08]} Nf8 {[%emt 0:00:33]} 17. Ne4 {[%emt 0:01:46]} Nxe4 {[%emt 0:00:55]} 18. Qxe4 {[%emt 0:00:32]} g6 {[%emt 0:00:24]} 19. Qc2 {[%emt 0:04:29]} Bf5 {[%emt 0:01:25]} 20. e4 {[%emt 0:02:37]} Bg4 {[%emt 0:00:45]} 21. h3 {[%emt 0:00:39]} Bd7 {[%emt 0:00:19]} 22. Ne1 {[%emt 0:01:53]} Qc8 {[%emt 0:00:22]} 23. Kh2 {[%emt 0:00:20]} Bf6 {[%emt 0:02:08]} 24. c5 {[%emt 0:01:28]} Qd8 {[%emt 0:00:57]} 25. c6 {[%emt 0:02:06]} Bc8 {[%emt 0:00:13]} 26. f4 {[%emt 0:00:53]} exf4 {[%emt 0:00:35]} 27. Bxf4 {[%emt 0:01:19]} Bg5 {[%emt 0:00:30]} 28. Qf2 {[%emt 0:01:21]} f6 {[%emt 0:05:20]} 29. Bxg5 {[%emt 0:02:12]} fxg5 {[%emt 0:00:09]} 30. Qf7+ {[%emt 0:01:17]} Kh8 {[%emt 0:00:24]} 31. Nd3 {[%emt 0:04:55]} Be6 {[%emt 0:04:13]} 32. dxe6 {[%emt 0:01:35]} Nxe6 {[%emt 0:00:08]} 33. Rf2 {[%emt 0:01:31]} Rf8 {[%emt 0:00:22]} 34. Qxe6 {[%emt 0:00:14]} Kg7 {[%emt 0:01:02]} 35. Rcf1 {[%emt 0:00:22]} Rxf2 {[%emt 0:00:53]} 36. Nxf2 {[%emt 0:00:42]} h5 {[%emt 0:01:36]} 37. e5 {[%emt 0:00:32]} Qg8 {[%emt 0:00:38]} 38. Qxg8+ {[%emt 0:00:49]} Rxg8 {[%emt 0:00:11]} 39. exd6 {[%emt 0:00:15]} cxd6 {[%emt 0:00:09]} 40. Rd1 {[%emt 0:00:27]} Rd8 {[%emt 0:01:24]} 41. Ne4 {[%emt 0:00:20]} d5 {[%emt 0:00:16]} 42. Nxg5 {[%emt 0:00:11]} d4 {[%emt 0:00:17]} 1-0